Cogmind - Beta 13 @@@ ROGUE MODE // 2024.05.23 @ 18:36:17 Player: Sunsh1n3 Result: Destroyed by B-75 Beast with Heavy Machine Gun Performance ------------- Evolutions (1) 500 Regions Visited (5) 1000 Robots Destroyed (8) 40 Value Destroyed (110) 110 Prototype IDs (0) 0 Alien Tech Used (0) 0 Bonus (600) 600 TOTAL SCORE: 2250 Bonus ------- Met Imprinter 300 Was Imprinted 300 Cogmind --------- Core Integrity 0/400 Matter 300/300 Energy 100/100 System Corruption 0% Temperature Cool (12) Movement Core (200) Ox3 Location -6/Proximity Caves Parts ------- > --- POWER (1) -------- (None) > --- PROPULSION (3) --- (None) > --- UTILITY (3) ------ Medium Storage Unit Visual Processing Unit > --- WEAPON (2) ------- (None) > --- INVENTORY (10) --- Ion Engine Light Treads Light Treads Huge Storage Unit Sensor Array Terrain Scanner Small Laser Beam Cannon Light Assault Rifle Shotgun Peak State ------------ > --- POWER ------------ Improved Deuterium Engine > --- PROPULSION ------- Aluminum Leg Aluminum Leg Aluminum Leg > --- UTILITY ---------- Medium Storage Unit Large Matter Pod Visual Processing Unit > --- WEAPON ----------- Medium Laser Assault Rifle > --- INVENTORY -------- Ion Engine Light Treads Light Treads Huge Storage Unit Sensor Array Terrain Scanner Small Laser Beam Cannon Light Assault Rifle Shotgun [Rating: 14] Favorites ----------- Power Improved Deuterium Engine Engine Improved Deuterium Engine Propulsion Aluminum Leg Leg Aluminum Leg Utility Large Matter Pod Storage Large Matter Pod Processor Visual Processing Unit Weapon Assault Rifle Energy Gun Medium Laser Ballistic Gun Assault Rifle Build | -11 -10 -9 -9 -7 -6 ------- Run | Yrd Mat Mat Min Zio Pro Slots Evolved 2 | . . 2 . . . Power . | . . . . . . Propulsion 1 | . . 1 . . . Utility 1 | . . 1 . . . Weapon . | . . . . . . Parts Attached 14 | 6 3 4 . 1 . Power 2 | 1 . . . 1 . Engine 2 | 1 . . . 1 . Core . | . . . . . . Reactor . | . . . . . . Propulsion 3 | 2 . 1 . . . Treads . | . . . . . . Leg 3 | 2 . 1 . . . Wheel . | . . . . . . Hover . | . . . . . . Flight . | . . . . . . Utility 6 | 1 2 3 . . . Device . | . . . . . . Storage 5 | 1 2 2 . . . Processor 1 | . . 1 . . . Hackware . | . . . . . . Protection . | . . . . . . Artifact . | . . . . . . Weapon 3 | 2 1 . . . . Energy Gun 1 | 1 . . . . . Energy Cannon . | . . . . . . Ballistic Gun 2 | 1 1 . . . . Ballistic Cannon . | . . . . . . Launcher . | . . . . . . Special Weapon . | . . . . . . Impact Weapon . | . . . . . . Slashing Weapon . | . . . . . . Piercing Weapon . | . . . . . . Special Melee Weapon . | . . . . . . Unidentified Prototypes . | . . . . . . Parts Lost 6 | . . . . . 6 Power 1 | . . . . . 1 Propulsion 3 | . . . . . 3 Utility 1 | . . . . . 1 Weapon 1 | . . . . . 1 Highest Loss Streak 4 | . . . . . 4 To Critical Strikes . | . . . . . . Average Slot Usage (%) 98 | . 97 100 100 100 95 Engine 11 | . 14 11 11 11 10 Leg 32 | . 28 33 33 33 31 Storage 22 | . 26 22 22 22 21 Processor 9 | . . 11 11 11 11 Energy Gun 10 | . 14 11 11 11 9 Ballistic Gun 11 | . 14 11 11 11 10 Naked Turns . | . . . . . . Heaviest Build 92 | 13 22 92 22 27 27 Greatest Support 30 | 20 20 30 30 30 30 Greatest Overweight (x) 7 | . 1 3 . . 7 Average Overweight (x) . | . . . . . . Largest Inventory Capacity 25 | 8 10 25 10 10 10 Average Capacity 10 | 7 9 14 10 10 10 Most Carried 10 | 4 9 8 10 10 10 Average Carried 8 | 2 5 7 8 10 10 Final Capacity 10 | 8 10 10 10 10 10 Final Carried 10 | 4 9 8 10 10 10 Class Distribution -------------------- 100% | Mutant Dominant Class ---------------- Mutant | -10/Materials Mutant | -9/Materials Mutant | -9/Mines Mutant | -7/Zion Mutant | -6/Proximity Caves Resources | -11 -10 -9 -9 -7 -6 ----------- Run | Yrd Mat Mat Min Zio Pro Matter Collected 504 | 218 59 . 205 22 . Remotely . | . . . . . . Salvage Created 155 | . 59 . 96 . . Parts 21 | . 5 . 16 . . Haulers Intercepted . | . . . . . . Recyclers Shooed . | . . . . . . Parts Field Recycled . | . . . . . . Retrieved Matter . | . . . . . . Parts Self-Destructed . | . . . . . . Prevented . | . . . . . . Kills | -11 -10 -9 -9 -7 -6 ------- Run | Yrd Mat Mat Min Zio Pro Combat Hostiles Destroyed 7 | . 1 . 6 . . Guns 7 | . 1 . 6 . . Classes Destroyed 3 | . 2 . 1 . . Watcher 1 | . 1 . . . . Swarmer 6 | . . . 6 . . Grunt 1 | . 1 . . . . Best Kill Streak 3 | . 1 . 3 . . Combat Bots Only 3 | . 1 . 3 . . Max Kills in Single Turn 2 | . 1 . 2 . . Gunslinging 1 | . . . 1 . . Exploded . | . . . . . . Melee . | . . . . . . Uniques/NPCs Destroyed . | . . . . . . Combat | -11 -10 -9 -9 -7 -6 -------- Run | Yrd Mat Mat Min Zio Pro Hostile Shots Fired 80 | . 6 . 19 . 55 Missed 29 | . 1 . 7 . 21 Damage Taken 1044 | . 58 . 95 . 891 Core 432 | . 11 . 17 . 404 Absorbed by Shields . | . . . . . . Regen/Repaired (Parts) 7 | . . . . 7 . Core Remaining (%) 97 | 100 95 . . . . Volleys Fired 10 | . 4 . 6 . . Largest 2 | . 2 . 2 . . Hottest 70 | . 70 . 70 . . Shots Fired 18 | . 7 . 11 . . Gun 18 | . 7 . 11 . . Cannon . | . . . . . . Launcher . | . . . . . . Special . | . . . . . . Kinetic 10 | . 4 . 6 . . Thermal 8 | . 3 . 5 . . Explosive . | . . . . . . Electromagnetic . | . . . . . . Robot Hit Streak 5 | . 4 . 5 . . Robot Miss Streak 1 | . 1 . 1 . . Penetration Max . | . . . . . . Secondary Targets 2 | . . . 2 . . Max Gunslinging Chain 1 | . . . 1 . . Shots Hit Robots 13 | . 6 . 7 . . Core Hits 8 | . 2 . 6 . . Critical Kills . | . . . . . . Critical Parts Destroyed . | . . . . . . Critical Strikes . | . . . . . . Melee Attacks . | . . . . . . Impact . | . . . . . . Slashing . | . . . . . . Piercing . | . . . . . . Sneak Attacks . | . . . . . . Combat Hostiles . | . . . . . . Follow-up Attacks . | . . . . . . Damage Inflicted 167 | . 81 . 86 . . Guns 167 | . 81 . 86 . . Cannons . | . . . . . . Explosions . | . . . . . . Melee . | . . . . . . Ramming . | . . . . . . Kinetic 80 | . 43 . 37 . . Thermal 87 | . 38 . 49 . . Explosive . | . . . . . . Electromagnetic . | . . . . . . Impact . | . . . . . . Slashing . | . . . . . . Piercing . | . . . . . . Highest Corruption . | . . . . . . Average Corruption . | . . . . . . Corruption Purged . | . . . . . . Corruption Blocked . | . . . . . . Overload Shots . | . . . . . . Overflow Damage . | . . . . . . Projectiles . | . . . . . . Explosions . | . . . . . . Melee . | . . . . . . Knockbacks . | . . . . . . Impact . | . . . . . . Kinetic . | . . . . . . Secondary . | . . . . . . Self-Inflicted Damage . | . . . . . . Shots . | . . . . . . Rammed . | . . . . . . Targets Rammed . | . . . . . . Kicked . | . . . . . . Crushed . | . . . . . . Highest Temperature 39 | . 39 . . . . Average Temperature 20 | . 20 . . . . Received Heat Transfer 198 | . 30 . . . 168 Siege Activations . | . . . . . . Robots Corrupted . | . . . . . . Combat Hostiles . | . . . . . . Parts Fried . | . . . . . . Impact Corruptions . | . . . . . . Robots Melted . | . . . . . . Combat Hostiles . | . . . . . . Parts Melted 1 | . . . 1 . . Heat Transferred 259 | . 111 . 148 . . Parts Sabotaged . | . . . . . . Parts Stolen . | . . . . . . Parts Stripped . | . . . . . . Power Chain Reactions . | . . . . . . Alert | -11 -10 -9 -9 -7 -6 ------- Run | Yrd Mat Mat Min Zio Pro Peak Influence 153 | . 52 36 153 . . Initial 21 | . . 21 13 . . Average 44 | . 19 29 95 . . Maximum Alert Level . | . . . . . . Low Security (%) 100 | 100 100 100 100 . . Level 1 . | . . . . . . Level 2 . | . . . . . . Level 3 . | . . . . . . Level 4 . | . . . . . . Level 5 . | . . . . . . High Security . | . . . . . . Max Security . | . . . . . . Squads Dispatched 2 | . 1 . . . 1 Investigation . | . . . . . . Extermination . | . . . . . . Reinforcement 1 | . 1 . . . . Assault 1 | . . . . . 1 Garrison . | . . . . . . Intercept . | . . . . . . Searches Triggered . | . . . . . . Construction Impeded . | . . . . . . Haulers Reinforced . | . . . . . . Active Scanning Responses . | . . . . . . Cargo Convoy Interrupts . | . . . . . . Stealth | -11 -10 -9 -9 -7 -6 --------- Run | Yrd Mat Mat Min Zio Pro Distress Signals . | . . . . . . Communications Jammed . | . . . . . . Distress Signals . | . . . . . . Times Spotted 19 | . 2 1 7 . 9 Peak Tracking Total 9 | . 2 1 4 . 9 Tactical Retreats 2 | . . . . . 2 Traps | -11 -10 -9 -9 -7 -6 ------- Run | Yrd Mat Mat Min Zio Pro Traps Triggered . | . . . . . . Indirectly . | . . . . . . Trap Hack Attempts . | . . . . . . Triggered . | . . . . . . Disarmed . | . . . . . . Reprogrammed . | . . . . . . Reused . | . . . . . . Traps Extracted . | . . . . . . Installed . | . . . . . . Triggered . | . . . . . . Machines | -11 -10 -9 -9 -7 -6 ---------- Run | Yrd Mat Mat Min Zio Pro Machines Disabled . | . . . . . . Max in Single Turn . | . . . . . . Machines Repaired . | . . . . . . Machines Dismantled . | . . . . . . Machines Sabotaged . | . . . . . . Overloaded Fab Kills . | . . . . . . Hacking | -11 -10 -9 -9 -7 -6 --------- Run | Yrd Mat Mat Min Zio Pro Machines Accessed . | . . . . . . Terminals . | . . . . . . Fabricators . | . . . . . . Repair Stations . | . . . . . . Recycling Units . | . . . . . . Scanalyzers . | . . . . . . Garrison Access . | . . . . . . Total Hacks . | . . . . . . Successful . | . . . . . . Failed . | . . . . . . Catastrophic . | . . . . . . Database Lockouts . | . . . . . . Manual . | . . . . . . Terminals . | . . . . . . Fabricators . | . . . . . . Repair Stations . | . . . . . . Recycling Units . | . . . . . . Scanalyzers . | . . . . . . Garrison Access . | . . . . . . Terminal Hacks . | . . . . . . Fabricator Hacks . | . . . . . . Repair Station Hacks . | . . . . . . Recycling Unit Hacks . | . . . . . . Scanalyzer . | . . . . . . Garrison Access Hacks . | . . . . . . Unauthorized Hacks . | . . . . . . Terminals . | . . . . . . Fabricators . | . . . . . . Repair Stations . | . . . . . . Recycling Units . | . . . . . . Scanalyzers . | . . . . . . Garrison Access . | . . . . . . Data Cores Recovered . | . . . . . . Used . | . . . . . . Hacking Detections . | . . . . . . Full Trace Events . | . . . . . . Feedback Events . | . . . . . . Feedback Blocked . | . . . . . . Robot Schematics Acquired . | . . . . . . Robots Built . | . . . . . . Authchips . | . . . . . . Time . | . . . . . . Total Robot Build Rating . | . . . . . . Part Schematics Acquired . | . . . . . . Parts Built . | . . . . . . Authchips . | . . . . . . Time . | . . . . . . Total Part Build Rating . | . . . . . . Parts Repaired . | . . . . . . Time . | . . . . . . Parts Recycled . | . . . . . . Recycled Matter . | . . . . . . Retrieved Matter . | . . . . . . Retrieved Components . | . . . . . . Parts Scanalyzed . | . . . . . . Part Schematics Acquired . | . . . . . . Parts Damaged . | . . . . . . Bothacking | -11 -10 -9 -9 -7 -6 ------------ Run | Yrd Mat Mat Min Zio Pro Used RIF Installer . | . . . . . . Robots Hacked . | . . . . . . Non-combat . | . . . . . . Combat . | . . . . . . Robot Hacks Applied . | . . . . . . Relay Couplers Released . | . . . . . . Fabnet Peak Effective % . | . . . . . . Robots Rewired . | . . . . . . Allies Hacked . | . . . . . . Hacks Repelled . | . . . . . . Allies | -11 -10 -9 -9 -7 -6 -------- Run | Yrd Mat Mat Min Zio Pro Total Allies 4 | . . . . 4 . Largest Group 4 | . . . . 4 . Highest-Rated Group 152 | . . . . 152 . Highest-Rated Ally 40 | . . . . 40 . Total Orders . | . . . . . . Ally Attacks . | . . . . . . Total Damage . | . . . . . . Kills . | . . . . . . Allies Corrupted . | . . . . . . Allies Melted . | . . . . . . Intel | -11 -10 -9 -9 -7 -6 ------- Run | Yrd Mat Mat Min Zio Pro Robot Analysis Total . | . . . . . . Derelict Logs Recovered 5 | . . . . 3 2 Drone Launches . | . . . . . . Drone Recoveries . | . . . . . . Exploration | -11 -10 -9 -9 -7 -6 ------------- Run | Yrd Mat Mat Min Zio Pro Turns Passed 1841 | 66 213 147 207 643 565 Spaces Moved 1388 | 46 107 96 147 531 461 Core 12 | 6 . . . . 6 Treads . | . . . . . . Legs 1376 | 40 107 96 147 531 455 Wheels . | . . . . . . Hover . | . . . . . . Flight . | . . . . . . Fastest Speed 50 | 50 120 120 120 120 120 Average Speed 125 | 110 161 146 120 120 122 Slowest Speed 400 | 120 190 330 120 120 400 Overloaded Moves . | . . . . . . Propulsion Burnouts . | . . . . . . Robots Hopped . | . . . . . . Cave-ins Triggered . | . . . . . . Exploration Rate (%) 31 | 3 24 14 33 63 54 Regions Visited 5 Branch Regions 3 Pre-discovered Areas . | . . . . . . Known Exits Taken . | . . . . . . Unknown Exits Taken 5 | 1 1 1 1 1 . Scrap Searched 2 | . . . 1 1 . Spaces Dug . | . . . . . . Terrain Destroyed . | . . . . . . Melee . | . . . . . . Projectile . | . . . . . . AOE . | . . . . . . Terrain Rammed . | . . . . . . Walls Destroyed . | . . . . . . Machines Disabled . | . . . . . . Actions | -11 -10 -9 -9 -7 -6 --------- Run | Yrd Mat Mat Min Zio Pro Total 1467 | 61 140 102 166 537 461 Wait 36 | . 19 . 12 5 . Move 1383 | 45 106 95 146 530 461 Hop . | . . . . . . Pick Up 21 | 10 7 2 2 . . Fast Attach . | . . . . . . Attach 9 | 6 1 2 . . . Detach . | . . . . . . Swap 5 | . 2 2 . 1 . Drop 3 | . 1 1 . 1 . Fire 10 | . 4 . 6 . . Melee . | . . . . . . Ram . | . . . . . . Kick . | . . . . . . Crush . | . . . . . . Escape Stasis . | . . . . . . Rewire . | . . . . . . Trap . | . . . . . . Miscellaneous . | . . . . . . Route ------- -11/Scrapyard -10/Materials (discovered 2 exits: [*Mat] / [*Min]) -9/Materials -9/Mines -7/Zion (discovered 2 exits: Dee / [*Pro]) -6/Proximity Caves History --------- Turn | Location | Event 4 | -11/Scrapyard | Discovered new exit (range 15) 67 | -11/Scrapyard | Entered Materials 193 | -10/Materials | Discovered new exit (range 13) 276 | -10/Materials | Discovered new exit (range 3) 280 | -10/Materials | Entered another Materials area 280 | -9/Materials | Evolved 2 slots: Propulsion x1, Utility x1 313 | -9/Materials | Build established: Mutant 410 | -9/Materials | Discovered new exit (range 13) 427 | -9/Materials | Entered Mines 439 | -9/Mines | Met a Derelict bent on vengeance 629 | -9/Mines | A Derelict revealed a hidden shortcut to a safe place 634 | -9/Mines | Entered Zion 665 | -7/Zion | Given A8's code to call for help 853 | -7/Zion | Learned Factory stockpile data 856 | -7/Zion | Identified exit to Deep Caves 991 | -7/Zion | Imprinted 993 | -7/Zion | Declared Zion's savior 1266 | -7/Zion | Discovered new exit (range 8) 1277 | -7/Zion | Entered Proximity Caves 1364 | -6/Proximity Caves | Spotted B-75 Beast 1630 | -6/Proximity Caves | Learned Factory terminal intel 1744 | -6/Proximity Caves | Attracted the attention of an 0b10 outpost 1774 | -6/Proximity Caves | Learned Factory machine intel 1838 | -6/Proximity Caves | Core integrity fell below 50% 1840 | -6/Proximity Caves | Core integrity fell below 20% 1842 | -6/Proximity Caves | Destroyed by B-75 Beast with Heavy Machine Gun Last Messages --------------- 01630_ Acquired derelict log, extracted data. Data stored: Factory terminal intel. 01744_ Y-64 Sentinel: "DETECTED UNIDENTIFIED DERELICT." 01744_ L-41 Fighter springs to life. 01744_ B-48 Gladiator springs to life. 01744_ Med. Laser destroyed. 01748_ Y-64 Sentinel: "REQUESTING BACKUP." 01751_ Slug penetrates Wall. 01754_ Penetrated by Slug. 01764_ Slug penetrates Wall. 01774_ Acquired derelict log, extracted data. Data stored: Factory machine intel. 01790_ Lrg. Matter Pod destroyed. 01823_ Aluminum Leg destroyed. 01835_ G-50 Soldier knocked back. 01837_ Assault Rifle severed. 01838_ Imp. Deuterium Engine destroyed. 01839_ Critical hit (Burn: +37). 01842_ Knocked back. Map ----- +----------------------------------------------------+ | ?????????????????????????????????????????????????? | | ?????????????????????????????????????????????????? | | ?????????????????????????????????????????????????? | | ?????????????????????????????????????????????????? | | ?????????????????????????????????????????????????? | | ?????????????????????????????????????????????????? | | ?????????????????????????????????????????????????? | | ?????????????????????????????????????????????????? | | ?????????????????????????????????????????????????? | | ?????????????????????????????????????????????????? | | ???????????????????????????##????????????????????? | | ??????????????????????????# ###??????????????????? | | ??????????????????????#### ??????????????????? | | ?????????????????????## ????????????????#### | | ???????????????????### ????????????????# | | ???????????????????# #????????????????# ## | | ?##???????????????? #????????????????# #? | | # ????????????????? ???????????#####?# #? | | ???????##????????# #?????###??## ### #? | | ???????# ??###### ?????## #?# #? | | ???????# ?# #?????# ## #? | | ????????# # #??????# #? | | ????????# # #??????## ## | | ????????# # #???????# # | | #?????????# BB % #???????# #### | | #?????????# BB @ #???????##??## ## | | #????###### ##???????????# #### | | #???## ## l ##???????????## ##### | | ##?## ###### ;;l ##???????????## | | ### #????# ;%###???????????## | | ##???# g###???????????## ##### | | ##??# #???????????# ## ##????? | | ## ##?## % #??????????## #####?????? | | ?## #### #??????????# ##????????? | | ### ##; #??????????# ###???????# | | ## ###???????## #???????# | | ## ######### #??#??### | | " ## #### # | | #### ##% ### | | #??# ######" ########### | | #?## #????####????????## ### | | " ####### ##??????????????## ### ##?# | | " #?#### ####??????????## ## #???###??? | | ### #??????????# ## ##????????? | | #????????### ####?????????# | | #???????##" #?####???????# | | ## ##??????##"" #### ##?????## | | ######## ##???????#"""" ##?# ##???## | | #??????#######????????#""#" #??# #???# | | #?????????????????????##### #???# #???# | +----------------------------------------------------+ Best States ------------- Heat Dissipation 28 Energy Generation 16 Energy Capacity 290 Matter Stores 439 Matter Capacity 450 Sight Range 18 Terrain Scan Density 10 Evasion (%) 55 Item Schematics ----------------- None Robot Schematics ------------------ None Fabricated ------------ Nothing Alien Tech Used ----------------- None Achievements -------------- None Challenges ------------ None Game ------ Seed BarrageNetworkThruster Manual? 0 Play Time 00:13:53 Cumulative 8.8 hours Start 2024.05.23 @ 18:25:01 End 2024.05.23 @ 18:36:17 Sessions 1 Manual Loads 0 Difficulty Rogue Special Mode None Game No. 16 Rogue 16 Adventurer 0 Explorer 0 Win Type - Total 0 Types 0/0/0/0/0/0/0/0/0 Lore% 13 Gallery% 18 Achievement% 13 Wizard Run 0 Options --------- Layout 1 ASCII 0 Keyboard 0 Movement Mouse Keybinds 0 Fullscreen 2 Font 24/Smallcaps Map View 50x35 Zoom Use 0% Tactical HUD 1 Map Filters NONE Filters NONE Steam 1 RUN: 38f90a87-f515-49cb-85a5-e3f526625162